bitfinex/quotes_SOLUSD_20250123
["timestamp","ask_amount","ask_price","bid_price","bid_amount"]
[1737591240085,161.576884,257.6,257.56,11.75894555]
[1737591240887,244.676884,257.6,257.54,11.75894555]
[1737591241778,244.676884,257.6,257.52,11.78894555]
[1737591241779,23.776884,257.58,257.52,11.78894555]
[1737591242094,27.659084,257.58,257.52,11.78894555]
[1737591242275,28.23996633,257.58,257.52,11.78894555]
[1737591243191,24.35776633,257.58,257.54,11.75894555]
[1737591243397,5.4844,257.6,257.56,11.75894555]
[1737591246000,23.776884,257.58,257.54,11.75894555]
[1737591246186,23.776884,257.58,257.52,0.03]
[1737591246496,40.159084,257.58,257.52,0.03]
[1737591246700,27.659084,257.58,257.52,0.03]
[1737591246893,32.659084,257.58,257.52,0.03]
[1737591247400,27.659084,257.58,257.52,0.03]
[1737591249293,23.776884,257.58,257.53,11.75894555]
[1737591249491,0.58088233,257.59,257.52,0.03]
[1737591249492,0.58088233,257.6,257.55,11.75894555]
[1737591249802,23.776884,257.59,257.55,11.75894555]
[1737591250698,4.46258233,257.62,257.55,11.75894555]
[1737591250901,137.8,257.61,257.55,11.75894555]
[1737591251203,23.776884,257.6,257.55,11.75894555]
[1737591252585,137.8,257.61,257.57,11.78894555]
[1737591252794,137.8,257.61,257.59,11.75894555]
[1737591253793,137.8,257.68,257.59,11.75894555]
[1737591253996,137.8,257.68,257.66,11.75894555]
[1737591254310,6.073,257.69,257.66,11.75894555]
[1737591254311,137.8,257.67,257.66,11.75894555]
[1737591254808,220.9,257.67,257.66,11.75894555]
[1737591255184,137.8,257.68,257.66,11.75894555]
[1737591257198,137.8,257.67,257.66,23.5178911]
[1737591258991,137.8,257.67,257.66,53.5178911]
[1737591259305,137.8,257.67,257.66,41.75894555]
[1737591261890,137.8,257.67,257.66,53.5178911]
[1737591266212,134.10506719,257.67,257.66,53.5178911]
[1737591266601,0.063,257.74,257.69,20.0]
[1737591266809,0.063,257.74,257.73,11.75894555]
[1737591267705,0.063,257.74,257.73,41.75894555]
[1737591270112,48.467284,257.74,257.73,30.0]
[1737591270320,28.776884,257.72,257.66,0.03]
[1737591270492,35.53582955,257.7,257.66,30.03]
[1737591270695,220.9,257.73,257.67,11.75894555]
[1737591271217,23.776884,257.72,257.67,11.75894555]
[1737591273196,220.9,257.73,257.69,11.75894555]
[1737591274304,23.776884,257.72,257.67,11.75894555]
[1737591274497,35.53582955,257.7,257.66,0.03]
[1737591274720,36.11671188,257.7,257.66,0.03]
[1737591275221,3.8806,257.69,257.66,0.03]
[1737591275402,23.776884,257.67,257.66,0.03]
[1737591277621,27.657784,257.67,257.66,0.03]
[1737591280210,7.5,257.61,257.57,0.03]
[1737591280521,23.776884,257.59,257.57,0.03]
[1737591280713,24.35776633,257.58,257.57,0.03]
[1737591282127,28.23996633,257.58,257.57,0.03]
[1737591282922,24.35776633,257.58,257.57,0.03]
[1737591286639,20.64104555,257.59,257.57,0.03]
[1737591286640,1.5161,257.61,257.57,0.03]
[1737591286806,2.09698233,257.61,257.57,0.03]
[1737591287008,23.776884,257.6,257.57,0.03]
[1737591287227,0.58088233,257.64,257.58,11.75894555]
[1737591287424,0.58088233,257.64,257.6,11.75894555]
[1737591287829,23.776884,257.63,257.6,11.75894555]
[1737591288009,24.35776633,257.66,257.6,11.75894555]
[1737591288212,24.35776633,257.66,257.58,11.75894555]
[1737591288726,0.58088233,257.66,257.6,11.75894555]
[1737591288919,83.1,257.65,257.6,11.75894555]
[1737591289122,23.776884,257.64,257.6,11.75894555]
[1737591293934,220.9,257.63,257.6,11.75894555]
[1737591294835,220.9,257.62,257.57,0.03]
[1737591295418,220.9,257.62,257.58,20.0]
[1737591295626,137.8,257.66,257.58,20.0]
[1737591296337,137.8,257.66,257.62,20.0]
[1737591296519,137.8,257.66,257.65,11.75894555]
[1737591297238,83.163,257.67,257.65,11.75894555]
[1737591299430,0.063,257.67,257.65,11.75894555]
[1737591303323,0.063,257.67,257.63,11.75894555]
[1737591303324,220.9,257.66,257.63,11.75894555]
[1737591303941,220.9,257.64,257.63,11.75894555]
[1737591304245,23.776884,257.65,257.59,11.75894555]
[1737591304450,0.58088233,257.64,257.57,11.78894555]
[1737591304631,220.9,257.6,257.57,0.03]
[1737591304827,23.776884,257.59,257.57,0.03]
[1737591305039,27.659084,257.58,257.57,0.03]
[1737591305443,23.776884,257.58,257.57,0.03]
[1737591307440,23.776884,257.57,257.55,11.52284555]
[1737591307646,23.776884,257.57,257.53,11.75894555]
[1737591307963,244.676884,257.54,257.52,0.03]
[1737591308254,23.776884,257.53,257.52,0.03]
[1737591308743,23.776884,257.55,257.52,0.03]
[1737591308949,0.58088233,257.54,257.52,0.03]
[1737591309243,6.5012,257.55,257.53,11.75894555]
[1737591309547,23.776884,257.59,257.53,11.75894555]
[1737591309733,23.776884,257.59,257.56,11.75894555]
[1737591310331,23.776884,257.59,257.54,11.75894555]
[1737591310549,23.776884,257.57,257.52,0.03]
[1737591310847,0.58088233,257.58,257.52,0.03]
[1737591310848,220.9,257.54,257.52,0.03]
[1737591311146,23.776884,257.53,257.52,0.03]
[1737591316661,3.8824,257.58,257.52,11.78894555]
[1737591317234,24.35776633,257.57,257.52,11.78894555]
[1737591317433,24.35776633,257.57,257.52,0.03]
[1737591317958,44.60042955,257.55,257.52,0.03]
[1737591318129,23.776884,257.53,257.52,0.03]
[1737591319935,39.41882955,257.53,257.52,0.03]
[1737591321038,5.0,257.52,257.51,0.03]
[1737591321242,5.0,257.5,257.48,0.03]
[1737591321443,36.11671188,257.49,257.48,0.03]
[1737591322160,43.61671188,257.49,257.48,0.03]
[1737591323074,47.50031188,257.49,257.48,0.03]
[1737591324054,47.50031188,257.49,257.4,0.03]
[1737591324055,5.0,257.44,257.4,0.03]
[1737591324257,161.576884,257.41,257.4,0.03]
[1737591324458,30.043284,257.41,257.4,0.03]
[1737591324643,30.62416633,257.41,257.4,0.03]
[1737591324842,35.62416633,257.41,257.4,0.03]
[1737591325160,39.50896633,257.41,257.4,0.03]
[1737591326157,137.74,257.38,257.32,0.03]
[1737591326363,23.776884,257.36,257.32,0.03]
[1737591326652,5.0,257.34,257.32,0.03]
[1737591326865,23.776884,257.33,257.32,0.03]
[1737591327073,23.776884,257.33,257.32,11.78894555]
[1737591328274,137.8,257.36,257.32,11.78894555]
[1737591328466,137.8,257.36,257.35,11.75894555]
[1737591331554,137.8,257.36,257.33,11.75894555]
[1737591332461,137.8,257.4,257.35,11.75894555]
[1737591332658,23.776884,257.39,257.35,11.75894555]
[1737591333168,137.8,257.4,257.37,11.75894555]
[1737591333870,137.8,257.4,257.39,11.75894555]
[1737591334271,3.8842,257.46,257.39,11.75894555]
[1737591334272,137.8,257.46,257.39,11.75894555]
[1737591334567,137.8,257.5,257.45,11.75894555]
[1737591334783,137.8,257.5,257.47,11.75894555]
[1737591335074,23.776884,257.49,257.47,11.75894555]
[1737591335251,23.776884,257.49,257.45,11.75894555]
[1737591335452,137.8,257.48,257.47,11.75894555]
[1737591335977,23.776884,257.53,257.47,11.75894555]
[1737591336164,3.8832,257.52,257.47,11.75894555]
[1737591336475,83.1,257.48,257.47,11.75894555]
[1737591337364,137.8,257.51,257.47,11.75894555]
[1737591337556,137.8,257.51,257.5,11.75894555]
[1737591339572,23.776884,257.54,257.5,11.75894555]
[1737591339877,83.1,257.55,257.53,11.75894555]
[1737591340580,137.8,257.54,257.51,11.75894555]
[1737591341256,137.8,257.54,257.41,1.5632]
[1737591341257,23.776884,257.53,257.48,11.75894555]
[1737591341472,24.35776633,257.53,257.46,11.75894555]
[1737591341778,23.776884,257.48,257.42,11.75894555]
[1737591342371,23.776884,257.46,257.42,11.75894555]
[1737591346775,220.9,257.45,257.44,11.75894555]
[1737591348778,137.8,257.51,257.44,11.75894555]
[1737591348973,83.1,257.56,257.5,11.75894555]
[1737591349180,220.9,257.5,257.49,11.75894555]
[1737591349380,220.9,257.5,257.47,11.75894555]
[1737591349381,137.8,257.49,257.47,11.75894555]
[1737591351565,137.8,257.54,257.5,20.0]
[1737591351767,83.1,257.56,257.5,20.0]
[1737591351768,137.8,257.55,257.53,11.75894555]
[1737591351986,137.8,257.55,257.54,11.75894555]
[1737591359589,165.459584,257.55,257.52,11.75894555]
[1737591359790,220.9,257.52,257.5,11.75894555]
[1737591359991,220.9,257.5,257.48,11.75894555]
[1737591360698,220.4,257.49,257.48,11.75894555]
[1737591360996,220.4,257.48,257.44,11.75894555]
[1737591361291,137.3,257.47,257.42,11.75894555]
[1737591361697,137.3,257.46,257.42,11.75894555]
[1737591362279,220.4,257.44,257.4,11.75894555]
[1737591362977,23.776884,257.43,257.4,11.75894555]
[1737591363701,220.4,257.41,257.4,11.75894555]
[1737591363997,23.776884,257.38,257.35,11.78894555]
[1737591364180,0.58088233,257.38,257.35,0.03]
[1737591364896,137.8,257.36,257.35,0.03]
[1737591365106,161.576884,257.36,257.35,0.03]
[1737591365527,166.576884,257.36,257.35,0.03]
[1737591365806,165.462484,257.36,257.35,0.03]
[1737591368095,23.776884,257.36,257.35,0.03]
[1737591368271,0.58088233,257.38,257.35,0.03]
[1737591368479,23.776884,257.37,257.35,0.03]
[1737591368884,12.33982788,257.41,257.35,0.03]
[1737591369090,137.8,257.4,257.35,11.78894555]
[1737591369293,137.8,257.4,257.37,11.75894555]
[1737591370999,137.8,257.4,257.35,11.78894555]
[1737591372206,137.8,257.4,257.37,11.75894555]
[1737591372399,137.8,257.39,257.35,0.03]
[1737591372601,137.8,257.39,257.38,11.75894555]
[1737591372995,220.9,257.39,257.38,11.75894555]
[1737591375490,220.9,257.39,257.36,11.75894555]
[1737591375898,220.9,257.39,257.35,0.03]
[1737591376309,220.9,257.39,257.38,11.75894555]
[1737591376720,83.1,257.39,257.38,11.75894555]
[1737591379602,83.1,257.47,257.41,20.0]
[1737591379823,83.1,257.47,257.46,11.75894555]
[1737591384125,0.063,257.5,257.46,11.75894555]
[1737591384498,23.839884,257.5,257.46,11.75894555]
[1737591384801,0.063,257.5,257.46,11.75894555]
[1737591385721,83.1,257.46,257.44,11.75894555]
[1737591388810,137.8,257.45,257.44,11.75894555]
[1737591394845,83.1,257.46,257.44,11.75894555]
[1737591399028,137.8,257.45,257.44,11.75894555]
[1737591399211,220.9,257.45,257.44,11.75894555]
[1737591399406,220.9,257.45,257.42,11.75894555]
[1737591400107,137.8,257.43,257.42,11.75894555]
[1737591400711,83.1,257.44,257.42,11.75894555]
[1737591400911,137.8,257.43,257.42,11.75894555]
[1737591406635,3.8838,257.48,257.42,11.75894555]
[1737591406836,220.9,257.47,257.44,11.75894555]
[1737591408018,0.063,257.5,257.46,11.75894555]
[1737591408333,83.1,257.46,257.43,20.0]
[1737591409114,83.1,257.46,257.45,11.75894555]
[1737591416939,137.8,257.49,257.45,11.75894555]
[1737591417116,0.063,257.5,257.48,31.75894555]
[1737591418533,0.063,257.5,257.48,36.75894555]
[1737591418732,0.063,257.5,257.48,31.75894555]
[1737591419045,0.063,257.5,257.48,61.75894555]
[1737591420219,0.063,257.5,257.48,31.75894555]
[1737591420431,137.863,257.5,257.48,31.75894555]
[1737591420830,220.9,257.49,257.48,11.75894555]
[1737591421147,137.8,257.49,257.46,11.75894555]
[1737591421758,141.6837,257.49,257.46,11.75894555]
[1737591421962,220.9,257.47,257.44,11.75894555]
[1737591422136,220.9,257.46,257.42,11.78894555]
[1737591422347,137.8,257.43,257.42,11.78894555]
[1737591422850,23.776884,257.42,257.36,0.03]
[1737591423027,23.776884,257.4,257.36,0.03]
[1737591423227,0.58088233,257.39,257.36,0.03]
[1737591423751,23.776884,257.37,257.36,0.03]
[1737591423953,31.96206633,257.37,257.36,0.03]
[1737591424256,7.6043,257.37,257.36,0.03]
[1737591424750,8.18518233,257.37,257.36,0.03]
[1737591425824,7.6043,257.37,257.36,0.03]
[1737591426446,6.0571,257.37,257.36,0.03]
[1737591426742,1.5025,257.44,257.36,0.03]
[1737591426938,23.776884,257.43,257.39,11.75894555]
[1737591427639,137.8,257.43,257.39,11.75894555]
[1737591427852,137.8,257.42,257.41,11.75894555]
[1737591428944,137.8,257.44,257.41,11.75894555]
[1737591429139,137.8,257.44,257.36,0.03]
[1737591429140,23.776884,257.44,257.43,11.75894555]
[1737591429451,220.9,257.43,257.41,11.75894555]
[1737591429647,137.8,257.42,257.41,11.75894555]
[1737591430241,137.8,257.46,257.41,11.75894555]
[1737591430453,137.8,257.45,257.44,11.75894555]
[1737591430848,137.8,257.45,257.36,0.03]
[1737591430849,137.8,257.44,257.42,11.75894555]
[1737591434433,137.8,257.43,257.42,11.75894555]
[1737591434654,137.8,257.43,257.42,31.75894555]
[1737591434837,0.063,257.5,257.43,5.0]
[1737591435156,0.063,257.5,257.49,11.75894555]
[1737591435854,53.9782007,257.49,257.47,11.75894555]
[1737591436162,53.9782007,257.48,257.45,11.75894555]
[1737591436340,23.776884,257.49,257.47,11.75894555]
[1737591436953,137.8,257.49,257.45,11.75894555]
[1737591437146,137.8,257.49,257.45,11.70188555]
[1737591438454,27.723384,257.5,257.36,0.03]
[1737591438455,137.8,257.47,257.43,11.75894555]
[1737591438658,6.5693,257.46,257.41,11.75894555]
[1737591439557,161.576884,257.43,257.39,11.75894555]
[1737591439868,23.776884,257.41,257.37,11.75894555]
[1737591440249,220.9,257.4,257.37,11.75894555]
[1737591440559,220.9,257.4,257.36,0.03]
[1737591440958,220.9,257.38,257.36,0.03]
[1737591441769,244.676884,257.37,257.36,0.03]
[1737591442876,248.562284,257.37,257.36,0.03]
[1737591443249,220.9,257.37,257.36,0.03]
[1737591444378,220.9,257.43,257.36,0.03]
[1737591444557,220.9,257.43,257.4,11.75894555]
[1737591445251,137.8,257.42,257.4,11.75894555]
[1737591445763,137.8,257.42,257.38,11.75894555]
[1737591446071,83.1,257.43,257.36,0.03]
[1737591446072,23.776884,257.39,257.36,0.03]
[1737591446381,220.9,257.4,257.36,0.03]
[1737591446555,0.58088233,257.39,257.36,0.03]
[1737591446872,23.776884,257.39,257.36,0.03]
[1737591447081,27.661984,257.39,257.36,0.03]
[1737591448380,23.776884,257.39,257.36,0.03]
[1737591451178,220.9,257.38,257.36,0.03]
[1737591453654,220.9,257.38,257.36,11.78894555]
[1737591455586,83.1,257.38,257.36,11.78894555]
[1737591459167,83.1,257.38,257.36,0.03]
[1737591460289,161.576884,257.42,257.36,0.03]
[1737591460460,23.776884,257.4,257.36,0.03]
[1737591460668,23.776884,257.38,257.36,0.03]
[1737591461594,24.35776633,257.37,257.36,0.03]
[1737591461897,23.776884,257.37,257.36,0.03]
[1737591463983,41.59772955,257.37,257.36,0.03]
[1737591464861,20.0,257.34,257.32,0.03]
[1737591465066,56.11671188,257.33,257.32,0.03]
[1737591466278,60.00271188,257.33,257.32,0.03]
[1737591467394,65.00271188,257.33,257.32,0.03]
[1737591467598,23.776884,257.32,257.31,0.03]
[1737591467974,23.776884,257.32,257.31,0.0001]
[1737591469181,51.691784,257.28,257.26,0.03]
[1737591469384,20.0,257.24,257.2,0.03]
[1737591469589,35.53582955,257.22,257.2,0.03]
[1737591470171,23.776884,257.22,257.2,0.03]
[1737591471377,24.35776633,257.22,257.2,0.03]
[1737591472274,0.58088233,257.27,257.2,0.03]
[1737591472691,23.776884,257.26,257.2,0.03]
[1737591474096,229.7872,257.25,257.2,0.03]
[1737591474297,220.9,257.21,257.2,0.03]
[1737591474800,244.676884,257.21,257.2,0.03]
[1737591475489,244.676884,257.21,257.18,0.03]
[1737591475490,7.5,257.19,257.18,0.03]
[1737591475680,37.71211188,257.19,257.18,0.0001]
[1737591475881,45.21211188,257.19,257.18,0.0001]
[1737591476186,37.71211188,257.19,257.18,0.0001]
[1737591476390,24.17,257.17,257.16,0.01]
[1737591476592,24.17,257.17,256.95,11.75894555]
[1737591476593,23.776884,257.08,256.95,11.75894555]
[1737591476776,0.58088233,257.07,256.97,11.75894555]
[1737591477099,23.776884,257.05,256.97,11.75894555]
[1737591477280,0.58088233,257.05,256.97,11.75894555]
[1737591477606,24.35776633,257.05,256.97,11.75894555]
[1737591477896,24.35776633,257.05,256.96,18.90029908]
[1737591477897,23.776884,257.04,256.96,18.90029908]
[1737591478400,23.776884,257.02,256.94,18.90029908]
[1737591478607,23.776884,257.0,256.94,18.90029908]
[1737591478900,0.58088233,256.99,256.92,18.90029908]
[1737591479291,0.58088233,257.0,256.92,18.90029908]
[1737591479799,19.48118141,257.02,256.92,18.90029908]
[1737591480378,19.48118141,257.02,256.94,18.90029908]
[1737591480573,23.776884,257.0,256.94,18.90029908]
[1737591480776,220.9,257.01,256.96,18.90029908]
[1737591481104,220.9,257.01,256.99,18.90029908]
[1737591482202,83.1,257.01,256.99,18.90029908]
[1737591482397,137.8,257.06,257.02,20.0]
[1737591482594,137.8,257.06,257.04,18.90029908]
[1737591482999,137.8,257.12,257.04,18.90029908]
[1737591483198,137.8,257.11,257.09,18.90029908]
[1737591483987,137.8,257.12,257.09,18.90029908]
[1737591484193,137.8,257.17,257.14,20.0]
[1737591484484,137.8,257.23,257.16,38.90029908]
[1737591484684,137.8,257.23,257.16,20.0]
[1737591485697,137.8,257.24,257.2,18.90029908]
[1737591485887,137.8,257.24,257.18,18.90029908]
[1737591486088,23.776884,257.23,257.18,18.90029908]
[1737591487097,137.8,257.23,257.22,18.90029908]
[1737591487603,137.8,257.22,257.2,18.90029908]
[1737591489394,137.8,257.21,257.18,18.90029908]
[1737591489599,23.776884,257.24,257.18,18.90029908]
[1737591489600,137.8,257.2,257.18,18.90029908]
[1737591492886,137.8,257.19,257.18,18.90029908]
[1737591494196,137.8,257.18,257.16,18.90029908]
[1737591494397,220.9,257.15,257.12,18.90029908]
[1737591495701,23.776884,257.14,257.12,18.90029908]
[1737591496010,220.9,257.13,257.1,18.90029908]
[1737591496190,220.9,257.1,257.08,18.90029908]
[1737591496392,220.9,257.09,257.06,18.90029908]
[1737591496586,161.576884,257.08,257.06,18.90029908]
[1737591496792,220.9,257.07,257.04,18.90029908]
[1737591497291,161.576884,257.06,257.04,18.90029908]
[1737591498014,161.576884,257.05,257.04,18.90029908]
[1737591498192,137.8,257.03,257.02,18.90029908]
[1737591498514,137.8,257.01,256.98,18.90029908]
[1737591498709,137.8,257.0,256.98,18.90029908]
[1737591499393,23.776884,256.99,256.96,18.90029908]
[1737591499910,0.58088233,257.05,256.96,18.90029908]
[1737591499911,248.567284,257.04,256.96,18.90029908]
[1737591500113,0.58088233,257.03,256.96,18.90029908]
[1737591500688,137.8,257.01,257.0,18.90029908]
[1737591501318,161.576884,257.01,257.0,18.90029908]
[1737591501914,161.576884,257.01,256.83,0.58365977]
[1737591501915,137.8,256.98,256.94,18.90029908]
[1737591502303,23.776884,256.97,256.94,18.90029908]
[1737591502506,137.8,256.98,256.94,18.90029908]
[1737591502708,137.8,256.97,256.96,18.90029908]
[1737591503219,137.8,257.02,256.99,20.0]
[1737591503421,137.8,257.02,257.01,37.80059816]
[1737591503730,137.8,257.02,257.01,41.69139816]
[1737591504017,137.8,257.02,257.01,22.79109908]
[1737591505322,137.8,257.02,257.01,18.90029908]
[1737591506223,23.776884,257.02,256.97,18.90029908]
[1737591506519,23.776884,257.0,256.97,18.90029908]
[1737591507304,137.8,257.0,256.99,18.90029908]
[1737591507713,137.8,256.99,256.97,18.90029908]
[1737591508221,137.8,256.98,256.97,18.93029908]
[1737591510633,161.576884,256.98,256.97,0.03]
[1737591512423,23.776884,256.98,256.97,0.03]
[1737591512933,43.25806541,256.98,256.97,0.03]
[1737591513301,31.85776633,256.98,256.86,18.90029908]
[1737591513525,83.1,256.94,256.88,18.90029908]
[1737591513907,23.776884,256.93,256.88,18.90029908]
[1737591514818,27.669084,256.93,256.86,18.90029908]
[1737591515029,106.876884,256.91,256.86,18.90029908]
[1737591515601,107.45776633,256.91,256.84,18.90029908]
[1737591516335,3.8925,256.9,256.84,18.90029908]
[1737591516835,23.776884,256.89,256.82,18.90029908]
[1737591517005,137.8,256.88,256.82,18.90029908]
[1737591517202,23.776884,256.85,256.8,18.90029908]
[1737591517731,23.776884,256.85,256.73,3.8951]
[1737591517732,137.8,256.88,256.83,18.90029908]
[1737591517918,25.50429908,256.96,256.87,18.90029908]
[1737591517919,137.8,256.92,256.87,18.90029908]
[1737591519444,220.9,256.88,256.81,18.90029908]
[1737591519635,220.9,256.86,256.79,18.90029908]
[1737591519802,244.676884,256.85,256.79,18.90029908]
[1737591520008,23.776884,256.82,256.77,18.90029908]
[1737591520319,137.8,256.82,256.79,18.90029908]
[1737591521035,83.1,256.83,256.81,18.90029908]
[1737591521220,137.8,256.81,256.79,18.90029908]
[1737591523318,220.9,256.8,256.77,18.90029908]
[1737591524005,220.9,256.8,256.71,0.03]
[1737591524006,83.1,256.8,256.79,18.90029908]
[1737591526733,137.8,256.85,256.82,20.0]
[1737591527026,137.8,256.85,256.84,18.90029908]
[1737591527332,137.8,256.93,256.87,20.0]
[1737591527538,137.8,256.97,256.92,18.90029908]
[1737591527713,6.604,257.01,256.96,18.90029908]
[1737591527714,137.8,257.0,256.96,18.90029908]
[1737591528629,137.8,257.0,256.94,18.90029908]
[1737591528810,137.8,257.0,256.96,18.90029908]
[1737591529008,161.576884,256.97,256.94,18.90029908]
[1737591529212,161.576884,256.97,256.89,18.90029908]
[1737591529213,23.776884,256.95,256.89,18.90029908]
[1737591531030,0.063,256.98,256.94,18.90029908]
[1737591531237,137.8,257.07,257.0,20.0]
[1737591531536,137.8,257.11,257.05,18.90029908]
[1737591531709,137.8,257.11,257.08,18.90029908]
[1737591533152,137.8,257.1,257.04,20.0]
[1737591533330,0.063,257.15,257.09,18.90029908]
[1737591533541,0.063,257.15,257.14,18.90029908]
[1737591533917,137.8,257.14,257.12,18.90029908]
[1737591534132,137.8,257.11,257.08,18.90029908]
[1737591535334,23.776884,257.13,257.1,18.90029908]
[1737591536552,137.8,257.14,257.12,18.90029908]
[1737591536717,0.063,257.15,257.13,18.90029908]
[1737591536912,0.063,257.15,257.14,18.90029908]
[1737591537430,0.063,257.2,257.16,20.0]
[1737591537618,0.063,257.2,257.19,18.90029908]
[1737591538746,137.8,257.19,257.17,18.90029908]
[1737591538958,141.6881,257.19,257.17,18.90029908]
[1737591539248,137.8,257.19,257.17,18.90029908]
[1737591539422,0.063,257.2,257.17,18.90029908]
[1737591539423,0.063,257.2,257.19,20.0]
[1737591539619,0.063,257.2,257.19,39.48335121]
[1737591539826,0.063,257.2,257.19,38.90029908]
[1737591544337,0.063,257.2,257.19,18.90029908]
[1737591545547,220.9,257.18,257.17,18.90029908]
[1737591546544,244.676884,257.18,257.15,18.90029908]
[1737591546947,27.665284,257.17,257.14,0.03]
[1737591547151,27.665284,257.17,257.15,18.90029908]
[1737591547716,220.9,257.18,257.15,18.90029908]
[1737591547918,220.9,257.18,257.17,18.90029908]
[1737591549044,244.676884,257.18,257.17,18.90029908]
[1737591549232,23.776884,257.18,257.17,18.90029908]
[1737591549741,3.8882,257.19,257.17,18.90029908]
[1737591549942,0.063,257.2,257.17,18.90029908]
[1737591550947,0.063,257.2,257.14,0.03]
[1737591550948,0.063,257.2,257.19,18.90029908]
[1737591552050,0.063,257.2,257.19,20.41989908]
[1737591553560,0.063,257.2,257.19,27.91989908]
[1737591553757,0.063,257.23,257.21,12.5]
[1737591553933,0.063,257.23,257.22,19.48324454]
[1737591554141,0.063,257.23,257.22,18.90029908]
[1737591555358,137.863,257.23,257.22,18.90029908]
[1737591558261,0.063,257.23,257.22,18.90029908]
[1737591558634,0.063,257.23,257.22,23.90029908]
[1737591558832,137.8,257.31,257.27,20.0]
[1737591559147,83.1,257.32,257.3,18.90029908]
[1737591561032,23.776884,257.31,257.3,18.90029908]
[1737591561236,220.9,257.28,257.26,18.90029908]
[1737591561568,220.9,257.28,257.14,26.43029908]
[1737591561569,220.9,257.27,257.24,18.90029908]
[1737591561748,220.9,257.27,257.26,20.0]
[1737591562861,220.9,257.27,257.26,18.90029908]
[1737591565038,220.9,257.24,257.19,18.90029908]
[1737591565235,137.8,257.23,257.19,18.90029908]
[1737591565742,137.8,257.22,257.19,18.90029908]
[1737591566039,137.8,257.21,257.19,18.90029908]
[1737591566459,137.8,257.2,257.19,18.90029908]
[1737591567959,23.776884,257.22,257.19,18.90029908]
[1737591568377,23.776884,257.22,257.14,0.03]
[1737591568378,137.8,257.18,257.15,18.90029908]
[1737591570359,161.576884,257.17,257.14,0.03]
[1737591571577,23.776884,257.15,257.14,0.03]
[1737591572748,27.665584,257.15,257.14,0.03]
[1737591573775,35.90376633,257.15,257.14,0.03]
[1737591575274,48.40376633,257.15,257.01,18.90029908]
[1737591575576,23.776884,257.1,257.01,18.90029908]
[1737591575749,23.776884,257.08,257.01,18.90029908]
[1737591575953,0.58088233,257.09,256.99,18.90029908]
[1737591575954,23.776884,257.06,256.99,18.90029908]
[1737591576275,23.776884,257.04,256.97,18.90029908]
[1737591576471,0.58088233,257.03,256.97,18.90029908]
[1737591576675,7.03678233,257.03,256.97,18.90029908]
[1737591576880,7.03678233,257.03,256.89,1.6439]
[1737591576884,7.03678233,257.03,256.95,18.90029908]
[1737591577579,23.776884,257.01,256.95,18.90029908]
[1737591577978,161.576884,256.99,256.95,18.90029908]
[1737591578366,161.576884,256.99,256.89,0.03]
[1737591578367,23.776884,256.97,256.93,18.93029908]
[1737591578781,23.776884,256.97,256.93,0.03]
[1737591579775,27.668384,256.97,256.93,0.03]
[1737591579975,23.776884,256.95,256.93,0.03]
[1737591580476,24.35776633,256.94,256.93,0.03]
[1737591581772,23.776884,256.94,256.93,0.03]
[1737591582381,4.47208233,256.99,256.93,0.03]
[1737591582558,1.5781,257.01,256.93,18.93029908]
[1737591583082,23.776884,257.0,256.96,18.90029908]
[1737591583250,23.776884,257.0,256.93,0.03]
[1737591583251,23.776884,257.0,256.94,18.90029908]
[1737591584972,220.9,256.99,256.98,18.90029908]